{"text_format":"1","workbook":"xlsx","n_sheets":4,"sheets":["入力欄","参加申し込み","プログラム","個人情報確認"],"not_rendered":{"charts":0,"images":0,"macros":1,"external_links":0,"defined_names":3,"comments":1,"pivot_tables":0},"unopened":[],"bounds":{"document_bytes":16777216,"sheet_cells":100000,"rows_first":2000,"rows_last":500,"rows_between":2000,"halvings":0,"cell_chars":16384,"cell_head_chars":4096},"cells_cut":0,"cells_raw":0,"read":"whole","date_system":"1900"}

{"sheet":"入力欄","index":0,"n_rows":64,"n_cols":47,"rows_kept":64,"cut":false,"hidden":false,"merged":[[8,7,8,10],[8,11,8,14],[35,0,35,1],[10,7,11,13],[35,6,35,9],[10,4,10,5],[11,4,11,5],[17,5,18,8],[0,0,0,1],[6,4,6,5],[7,4,7,5],[8,4,8,5],[9,4,9,5],[0,2,0,4],[3,7,3,10],[4,7,4,10],[5,7,5,10],[6,7,6,10],[7,7,7,10],[3,11,3,14],[4,11,4,14],[5,11,5,14],[6,11,6,14],[7,11,7,14]]}
["高松市バスケットボールカーニバル大会",null,{"$f":"INDEX(L4:O9,MATCH(A1,H4:H9,0),1)","v":"高松市バスケットボール協会"},null,null,"データを保存する場合はファイル名の(チーム名男女)を変更してください。"]
[null,"入力(選択)欄","A1 のセルの大会名を変更してください"]
["申込年",{"$f":"YEAR(TODAY())","v":2025},"現在の日付が入力されています。",null,null,null,null,"大会名",null,null,null,"主催者名"]
["申込月",{"$f":"MONTH(TODAY())","v":4},"特定の日に変更したいときは直接セル(B3～B5)に入力してください。",null,null,null,null,"香川県ジュニアバスケットボール大会",null,null,null,"(一社)香川県バスケットボール協会"]
["申込日",{"$f":"DAY(TODAY())","v":2},null,null,null,null,null,"ＫＡＧＡＷＡ　ＣＵＰ",null,null,null,"(一社)香川県バスケットボール協会"]
[null,null,null,"合同チームの2チーム目",null,null,null,"高松市ジュニアバスケットボール大会",null,null,null,"高松市バスケットボール協会"]
["チーム名(正式)",null,null,"チーム名(正式)",null,null,null,"高松市バスケットボール協会長杯",null,null,null,"高松市バスケットボール協会"]
["チーム名(略称)",null,null,"チーム名(略称)",null,null,null,"香川県U-15バスケットボールリーグ",null,null,null,"(一社)香川県バスケットボール協会"]
["所在地",null,null,"所在地",null,null,null,"高松市バスケットボールカーニバル大会",null,null,null,"高松市バスケットボール協会"]
["電話番号",null,null,"電話番号"]
["チームＩＤ",null,null,"チームＩＤ",null,null,null,"各シートは、シートの保護をしています。様式を修正する場合は\n「校閲」→「シートの保護の解除」をしてください。"]
["責任者氏名",null,"所属","責任者氏名"]
["引率者氏名",null,null,"←合同チームの場合"]
["引率者職名",null,"所属"]
["連絡責任者氏名"]
["連絡責任者携帯電話",null,"↑",null,null,null,null,null,null,null,null,null,null,null,null,null,null,null,null,null,null,null,null,null,null,null,null,null,null,null,null,null,null,null,null,null,"香川県ジュニアバスケットボール大会","高松","小豆","さ東","綾坂","丸亀","仲善","三観"]
[null,null,"合同チームの場合",null,"×","個人情報について配慮が必要な者がいる場合は○、いない場合は×をつける。",null,null,null,null,null,null,null,null,null,null,null,null,null,null,null,null,null,null,null,null,null,null,null,null,null,null,null,null,null,null,"ＫＡＧＡＷＡ　ＣＵＰ","高松","小豆","さ東","綾坂","丸亀","仲善","三観"]
["地区",null,null,null,null,"個人情報の取り扱いについて",null,null,null,null,null,null,null,null,null,null,null,null,null,null,null,null,{"$f":"INDEX(AK16:AU20,MATCH(A1,AK16:AK20,0),2)","v":{"$error":"#N/A"}},{"$f":"INDEX(AK16:AU20,MATCH(A1,AK16:AK20,0),3)","v":{"$error":"#N/A"}},{"$f":"INDEX(AK16:AU20,MATCH(A1,AK16:AK20,0),4)","v":{"$error":"#N/A"}},{"$f":"INDEX(AK16:AU20,MATCH(A1,AK16:AK20,0),5)","v":{"$error":"#N/A"}},{"$f":"INDEX(AK16:AU20,MATCH(A1,AK16:AK20,0),6)","v":{"$error":"#N/A"}},{"$f":"INDEX(AK16:AU20,MATCH(A1,AK16:AK20,0),7)","v":{"$error":"#N/A"}},{"$f":"INDEX(AK16:AU20,MATCH(A1,AK16:AK20,0),8)","v":{"$error":"#N/A"}},{"$f":"INDEX(AK16:AU20,MATCH(A1,AK16:AK20,0),9)","v":{"$error":"#N/A"}},{"$f":"INDEX(AK16:AU20,MATCH(A1,AK16:AK20,0),10)","v":{"$error":"#N/A"}},{"$f":"INDEX(AK16:AU20,MATCH(A1,AK16:AK20,0),11)","v":{"$error":"#N/A"}},null,"○",null,null,"高松市ジュニアバスケットボール大会","高松","小豆","さ東","綾坂","丸亀","仲善","三観"]
["性別",null,"合同チームの場合",null,null,null,null,null,null,null,null,null,null,null,null,null,null,null,null,null,null,null,"男子","女子",null,null,null,null,null,null,null,null,null,"×",null,null,"高松市バスケットボール協会長杯","高松","小豆","さ東","綾坂","丸亀","仲善","三観"]
[null,null,"↓",null,"　参加申込によって得た個人情報は原則として、大会の運営に関することのみに利用します。",null,null,null,null,null,null,null,null,null,null,null,null,null,null,null,null,null,null,null,null,null,null,null,null,null,null,null,null,"選択必須",null,null,"香川県U-15バスケットボールリーグ","東讃1部","西讃1部","東讃2部","西讃2部","東讃3部","西讃3部","東讃4部","西讃4部","東讃5部","西讃5部"]
["コーチ氏名",null,"所属",null,"ただし、以下の場合に個人情報を公開および提供することがあります。"]
["コーチ職名",null,null,{"$f":"VLOOKUP(B22,$AF$27:$AG$34,2,)","v":{"$error":"#N/A"}},"① 大会プログラムを作成し、チームの集合写真・選手氏名・学年・身長等が掲載されることがあります。",null,null,null,null,null,null,null,null,null,null,null,null,null,null,null,null,null,"教諭","講師","部活動指導員","校長","教頭","主幹教諭","指導教諭"]
["コーチ資格",null,null,null,"② 新聞社に試合結果を提供します。その際に優秀選手等の個人名が提供されることがあります。",null,null,null,null,null,null,null,null,null,null,null,null,null,null,null,null,null,"A級","B級","C級","D級","E-1級","E-2級","なし"]
["コーチＩＤ",null,"合同チームの場合",null,"③ 新聞社が試合風景の写真を撮影し、掲載することがあります。"]
[null,null,"↓",null,"④ 協会ホームページに試合結果を掲載します。その際に優秀選手等の個人名が掲載されることがあります。"]
["Ａコーチ氏名",null,"所属",null,"⑤ 協会ホームページに試合風景の写真を掲載することがあります。"]
["Ａコーチ職名",null,null,{"$f":"VLOOKUP(B27,$AF$27:$AG$34,2,)","v":{"$error":"#N/A"}},"⑥ 県協会、日本協会の求めに応じて、優秀選手の推薦等の資料として個人名・身長等を提供することがあります。",null,null,null,null,null,null,null,null,null,null,null,null,null,null,null,null,null,"教諭","講師","部活動指導員","外部コーチ","校長","教頭","主幹教諭","指導教諭",null,"教諭","教員"]
["Ａコーチ資格",null,null,null,null,null,null,null,null,null,null,null,null,null,null,null,null,null,null,null,null,null,null,null,null,null,null,null,null,null,null,"講師","教員"]
["ＡコーチＩＤ",null,"合同チームの場合",null,null,null,null,null,null,null,null,null,null,null,null,null,null,null,null,null,null,null,null,null,null,null,null,null,null,null,null,"部活動指導員","部指"]
[null,null,"↓",null,null,null,null,null,null,null,null,null,null,null,null,null,null,null,null,null,null,null,null,null,null,null,null,null,null,null,null,"外部コーチ","外部"]
["マネージャー氏名",null,"所属",null,"基本ﾕﾆﾌｫｰﾑNo.は参加申込に反映されます。",null,null,null,null,null,null,null,null,null,null,null,null,null,null,null,null,null,null,null,null,null,null,null,null,null,null,"校長","教員"]
["マネージャー職名",null,null,null,"基本は同じNo.が複数いてもかまいません。",null,null,null,null,null,null,null,null,null,null,null,null,null,null,null,null,null,"教諭","講師","生徒","校長","教頭","主幹教諭","指導教諭",null,null,"教頭","教員"]
[null,null,null,null,"『00』を使用する場合はこの基本ﾕﾆﾌｫｰﾑNo.は『100』を入力してください。",null,null,null,null,null,null,null,null,null,null,null,null,null,null,null,null,null,null,null,null,null,null,null,null,null,null,"主幹教諭","教員"]
["トレーナー氏名",null,null,null,"『0』と『00』は同時には使用できません。",null,null,null,null,null,null,null,null,null,null,null,null,null,null,null,null,null,null,null,null,null,null,null,null,null,null,"指導教諭","教員"]
["トレーナー資格",null,null,"整数で","↓",null,null,null,null,"合同チームの場合",null,null,null,null,null,null,null,null,null,null,null,null,"医療に従事しており国家資格を有する者","トレーナーとして認定資格を有する者","当該校の養護教諭"]
["上からつめて入力してください↓",null,null,"↓","基本","申請中は『100000000』","メンバー票反映",null,null,null,"↓"]
[null,"選手氏名","学年","身長","ﾕﾆﾌｫｰﾑNo.","メンバーＩＤ","ａ","ｂ","ｃ","ｄ","備考"]
[1,null,null,null,null,null,null,null,null,null,null,null,null,null,null,null,null,null,null,null,null,null,null,"1年","2年","3年",{"$f":"B8","v":0},{"$f":"E8","v":0},{"$f":"IF(E38=\"\",\"*\",E38)","v":"*"}]
[2,null,null,null,null,null,null,null,null,null,null,null,null,null,null,null,null,null,null,null,null,null,null,null,null,null,null,null,"*"]
[3,null,null,null,null,null,null,null,null,null,null,null,"メンバー票の作成について",null,null,null,null,null,null,null,null,null,null,null,null,null,null,null,"*"]
[4,null,null,null,null,null,null,null,null,null,null,null,"25名中、任意の15名を選んだ4種類のメンバー票が作成できます。",null,null,null,null,null,null,null,null,null,null,null,null,null,null,null,"*"]
[5,null,null,null,null,null,null,null,null,null,null,null,"メンバー票はﾕﾆﾌｫｰﾑNo.の小さい順にならびます。参加申込は入力欄の順です。",null,null,null,null,null,null,null,null,null,null,null,null,null,null,null,"*"]
[6,null,null,null,null,null,null,null,null,null,null,null,null,null,null,null,null,null,null,null,null,null,null,null,null,null,null,null,"*"]
[7,null,null,null,null,null,null,null,null,null,null,null,"作成の手順",null,null,null,null,null,null,null,null,null,null,null,null,null,null,null,"*"]
[8,null,null,null,null,null,null,null,null,null,null,"①","上の『コピーする』をクリックし、基本のﾕﾆﾌｫｰﾑNo.をメンバー票反映a～dにコピーする",null,null,null,null,null,null,null,null,null,null,null,null,null,null,null,"*"]
[9,null,null,null,null,null,null,null,null,null,null,"②","そのゲームでベンチ入りしない者の欄に『*』を入力する。",null,null,null,null,null,null,null,null,null,null,null,null,null,null,null,"*"]
[10,null,null,null,null,null,null,null,null,null,null,null,"『*』は選手氏名がないところも含めて10個以上つけてください。メンバー票が正しく作成できません。",null,null,null,null,null,null,null,null,null,null,null,null,null,null,null,"*"]
[11,null,null,null,null,null,null,null,null,null,null,null,"『*』が入力されたセルは黄色で塗りつぶされます。",null,null,null,null,null,null,null,null,null,null,null,null,null,null,null,"*"]
[12,null,null,null,null,null,null,null,null,null,null,null,"10個より少ない場合はその列が赤く塗りつぶされます。",null,null,null,null,null,null,null,null,null,null,null,null,null,null,null,"*"]
[13,null,null,null,null,null,null,null,null,null,null,"③","同じNo.が同時に出場することはできません。",null,null,null,null,null,null,null,null,null,null,null,null,null,null,null,"*"]
[14,null,null,null,null,null,null,null,null,null,null,null,"同じ縦列で重複したNo.があるときはそのセルが緑に塗りつぶされます。",null,null,null,null,null,null,null,null,null,null,null,null,null,null,null,"*"]
[15,null,null,null,null,null,null,null,null,null,null,"④","メンバー票反映a～dは空欄を作らないでください。『0』と認識されます。",null,null,null,null,null,null,null,null,null,null,null,null,null,null,null,"*"]
[16,null,null,null,null,null,null,null,null,null,null,null,null,null,null,null,null,null,null,null,null,null,null,null,null,null,null,null,"*"]
[17,null,null,null,null,null,null,null,null,null,null,null,null,null,null,null,null,null,null,null,null,null,null,null,null,null,null,null,"*"]
[18,null,null,null,null,null,null,null,null,null,null,null,null,null,null,null,null,null,null,null,null,null,null,null,null,null,null,null,"*"]
[19,null,null,null,null,null,null,null,null,null,null,null,null,null,null,null,null,null,null,null,null,null,null,null,null,null,null,null,"*"]
[20,null,null,null,null,null,null,null,null,null,null,null,null,null,null,null,null,null,null,null,null,null,null,null,null,null,null,null,"*"]
[21,null,null,null,null,null,null,null,null,null,null,null,null,null,null,null,null,null,null,null,null,null,null,null,null,null,null,null,"*"]
[22,null,null,null,null,null,null,null,null,null,null,null,null,null,null,null,null,null,null,null,null,null,null,null,null,null,null,null,"*"]
[23,null,null,null,null,null,null,null,null,null,null,null,null,null,null,null,null,null,null,null,null,null,null,null,null,null,null,null,"*"]
[24,null,null,null,null,null,null,null,null,null,null,null,null,null,null,null,null,null,null,null,null,null,null,null,null,null,null,null,"*"]
[25,null,null,null,null,null,null,null,null,null,null,null,null,null,null,null,null,null,null,null,null,null,null,null,null,null,null,null,"*"]
[null,null,null,null,null,null,"『*』を\n増やす","『*』を\n増やす","*","『*』を\n増やす",null,null,null,null,null,null,null,null,null,null,null,null,null,null,null,null,null,null,"*"]
[null,null,null,null,null,null,{"$f":"COUNTIF(G38:G62,\"*\")","v":0},{"$f":"COUNTIF(H38:H62,\"*\")","v":0},{"$f":"COUNTIF(I38:I62,\"*\")","v":0},{"$f":"COUNTIF(J38:J62,\"*\")","v":0}]

{"sheet":"参加申し込み","index":1,"n_rows":35,"n_cols":8,"rows_kept":35,"cut":false,"hidden":false,"merged":[[2,0,2,7],[30,0,31,7],[34,1,34,4],[18,0,18,2],[19,0,19,2],[20,0,20,2],[21,0,21,2],[16,0,17,2],[23,0,23,7],[24,0,29,7],[16,3,17,3],[16,4,16,7],[11,3,11,4]]}
[]
[]
["令和７年度香川県ジュニアバスケットボール大会　参加申込書（第１次）"]
[]
[null,null,"チーム名",null,"（　　　　　　　　　　　　男子　・　女子　）"]
[]
[null,null,"記載責任者",null,"（　　　　　　　　　　　　　　　　　　　）"]
[]
["○令和７年度香川県ジュニアバスケットボール大会に"]
[]
[]
[null,"参加します",null,"・",null,null,"参加しません"]
[]
[]
["○　チーム帯同審判　参加確認表"]
[]
["氏名",null,null,"資格","参加可能日"]
[null,null,null,null,"3日（土）","4日（日）","5日（月）","6日（火）"]
[]
[]
[]
[]
[]
["※本大会は試合数も多く、４会場に分かれるため、特に審判の手配が非常に難しくなっています。各チームからの帯同審判員の方にも、大会運営の協力をお願いします。県内公認審判には、県協会審判委員会より別途審判依頼がメールされます。よろしくお願いいたします。このデータと両方で申込をお願いします。"]
["※学校・クラブチームで男女ともに参加する場合も、別々にこの第１次参加申込書を提出してください。4月16日（水）までにkba.u15.team@gmail.comまで送信いただきますようご協力お願いいたします。第２次参加申込書は、大会初日に試合会場本部席に提出してください。"]
[]
[]
[]
[]
[]
["※本大会はオンラインにてプログラムを配布します。そのため、入力欄にチーム情報を入力し、プログラムシートもご確認ください。よろしくお願いいたします。"]
[]
[]
["提出先","高松市立太田中学校　清水基成"]
["メールアドレス","kba.u15.team@gmail.com"]

{"sheet":"プログラム","index":2,"n_rows":47,"n_cols":66,"rows_kept":47,"cut":false,"hidden":false,"merged":[[5,0,6,3],[5,4,6,16],[5,17,5,19],[5,20,5,28],[6,17,6,19],[6,20,6,28],[0,1,0,3],[2,14,2,16],[2,17,2,19],[2,20,2,28],[3,14,3,16],[3,17,3,19],[3,20,3,28],[8,0,8,1],[8,2,8,10],[8,11,8,13],[8,14,8,17],[8,18,8,28],[9,0,9,1],[9,2,9,7],[9,8,9,10],[9,11,9,13],[9,14,9,17],[11,0,11,1],[11,2,11,7],[11,8,11,10],[11,11,11,13],[11,14,11,17],[11,18,11,28],[9,18,9,28],[10,0,10,1],[10,2,10,7],[10,8,10,10],[10,11,10,13],[10,14,10,17],[10,18,10,28],[13,0,13,1],[13,2,13,7],[13,8,13,10],[13,11,13,13],[13,14,13,17],[13,18,13,28],[12,0,12,1],[12,2,12,7],[12,8,12,10],[12,11,12,13],[12,14,12,17],[12,18,12,28],[15,0,15,1],[15,2,15,7],[15,8,15,10],[15,11,15,13],[15,14,15,17],[15,18,15,28],[14,0,14,1],[14,2,14,7],[14,8,14,10],[14,11,14,13],[14,14,14,17],[14,18,14,28],[17,0,17,1],[17,2,17,7],[17,8,17,10],[17,11,17,13],[17,14,17,17],[17,18,17,28],[16,0,16,1],[16,2,16,7],[16,8,16,10],[16,11,16,13],[16,14,16,17],[16,18,16,28],[19,0,19,1],[19,2,19,7],[19,8,19,10],[19,11,19,13],[19,14,19,17],[19,18,19,28],[18,0,18,1],[18,2,18,7],[18,8,18,10],[18,11,18,13],[18,14,18,17],[18,18,18,28],[20,31,21,34],[21,0,21,1],[21,2,21,7],[21,8,21,10],[21,11,21,13],[21,14,21,17],[21,18,21,28],[20,0,20,1],[20,2,20,7],[20,8,20,10],[20,11,20,13],[20,14,20,17],[20,18,20,28],[23,0,23,1],[23,2,23,7],[23,8,23,10],[23,11,23,13],[23,14,23,17],[23,18,23,28],[22,0,22,1],[22,2,22,7],[22,8,22,10],[22,11,22,13],[22,14,22,17],[22,18,22,28],[25,0,25,1],[25,2,25,7],[25,8,25,10],[25,11,25,13],[25,14,25,17],[25,18,25,28],[24,0,24,1],[24,2,24,7],[24,8,24,10],[24,11,24,13],[24,14,24,17],[24,18,24,28],[27,0,27,1],[27,2,27,7],[27,8,27,10],[27,11,27,13],[27,14,27,17],[27,18,27,28],[26,0,26,1],[26,2,26,7],[26,8,26,10],[26,11,26,13],[26,14,26,17],[26,18,26,28],[29,0,29,1],[29,2,29,7],[29,8,29,10],[29,11,29,13],[29,14,29,17],[29,18,29,28],[28,0,28,1],[28,2,28,7],[28,8,28,10],[28,11,28,13],[28,14,28,17],[28,18,28,28],[31,0,31,1],[31,2,31,7],[31,8,31,10],[31,11,31,13],[31,14,31,17],[31,18,31,28],[30,0,30,1],[30,2,30,7],[30,8,30,10],[30,11,30,13],[30,14,30,17],[30,18,30,28],[33,0,33,1],[33,2,33,7],[33,8,33,10],[33,11,33,13],[33,14,33,17],[33,18,33,28],[32,0,32,1],[32,2,32,7],[32,8,32,10],[32,11,32,13],[32,14,32,17],[32,18,32,28],[35,0,35,1],[35,2,35,10],[35,11,35,13],[35,14,35,17],[35,18,35,28],[36,0,36,1],[36,2,36,10],[36,11,36,13],[36,14,36,17],[36,18,36,28],[37,0,37,1],[37,2,37,10],[37,11,37,13],[37,14,37,17],[37,18,37,28],[38,0,38,1],[38,2,38,10],[38,11,38,13],[38,14,38,17],[38,18,38,28],[39,0,39,1],[39,2,39,10],[39,11,39,13],[39,14,39,17],[39,18,39,28],[40,0,40,1],[40,2,40,10],[40,11,40,13],[40,14,40,17],[40,18,40,28],[42,0,42,28],[43,0,44,10],[43,17,43,19],[45,5,45,13],[45,16,45,24],[46,6,46,13],[46,15,46,16],[46,17,46,24],[46,26,46,27]]}
[null,{"$f":"#REF!","v":{"$error":"#REF!"}},null,null,"年度",null,null,{"$f":"入力欄!A1","v":"高松市バスケットボールカーニバル大会"}]
[null,null,null,null,null,null,null,"個人情報の取り扱いに関する申請書"]
[null,null,null,null,null,null,null,null,null,null,null,null,null,null,"地区",null,null,"性別",null,null,"チームＩＤ"]
[null,null,null,null,null,null,null,null,null,null,null,null,null,null,{"$f":"入力欄!B18","v":0},null,null,{"$f":"入力欄!B19","v":0},null,null,{"$f":"IF(入力欄!E7=\"\",入力欄!B11,入力欄!B11&\"，\"&入力欄!E11)","v":0}]
[]
["チーム名",null,null,null,{"$f":"IF(入力欄!E7=\"\",入力欄!B7,入力欄!B7&\"，\"&入力欄!E7)","v":0},null,null,null,null,null,null,null,null,null,null,null,null,"住所",null,null,{"$f":"IF(入力欄!E7=\"\",入力欄!B9,入力欄!B9&\"，\"&入力欄!E9)","v":0},null,null,null,null,null,null,null,null,"個人情報の取扱について部員に確認する場合は『個人情報確認』のシートのプリントを利用してくださっても結構です。"]
[null,null,null,null,null,null,null,null,null,null,null,null,null,null,null,null,null,"電話",null,null,{"$f":"IF(入力欄!E7=\"\",入力欄!B10,入力欄!B10&\"，\"&入力欄!E10)","v":0}]
[]
["No.",null,"選　手　氏　名",null,null,null,null,null,null,null,null,"学年",null,null,"配慮が必要",null,null,null,"配慮する内容",null,null,null,null,null,null,null,null,null,null,null,null,null,null,null,null,null,null,null,null,null,null,null,"○"]
[1,null,{"$f":"IF(入力欄!B38=\"\",\"\",入力欄!B38)","v":""},null,null,null,null,null,{"$f":"IF(入力欄!K38=\"\",\"\",入力欄!K38)","v":""},null,null,{"$f":"IF(入力欄!C38=\"\",\"\",入力欄!C38)","v":""},null,null,null,null,null,null,null,null,null,null,null,null,null,null,null,null,null,"←配慮が必要な選手の欄に○をつけ、配慮する内容を番号で選択(複数可)するか、配慮事項を記入してください。"]
[2,null,{"$f":"IF(入力欄!B39=\"\",\"\",入力欄!B39)","v":""},null,null,null,null,null,{"$f":"IF(入力欄!K39=\"\",\"\",入力欄!K39)","v":""},null,null,{"$f":"IF(入力欄!C39=\"\",\"\",入力欄!C39)","v":""},null,null,null,null,null,null,null,null,null,null,null,null,null,null,null,null,null,"① プログラムに個人名・学年・身長を掲載しない(チーム集合写真は各チームで配慮してください)。"]
[3,null,{"$f":"IF(入力欄!B40=\"\",\"\",入力欄!B40)","v":""},null,null,null,null,null,{"$f":"IF(入力欄!K40=\"\",\"\",入力欄!K40)","v":""},null,null,{"$f":"IF(入力欄!C40=\"\",\"\",入力欄!C40)","v":""},null,null,null,null,null,null,null,null,null,null,null,null,null,null,null,null,null,"② 新聞社に個人名を提供しない。"]
[4,null,{"$f":"IF(入力欄!B41=\"\",\"\",入力欄!B41)","v":""},null,null,null,null,null,{"$f":"IF(入力欄!K41=\"\",\"\",入力欄!K41)","v":""},null,null,{"$f":"IF(入力欄!C41=\"\",\"\",入力欄!C41)","v":""},null,null,null,null,null,null,null,null,null,null,null,null,null,null,null,null,null,"③A 新聞社の写真に掲載されないようにする。"]
[5,null,{"$f":"IF(入力欄!B42=\"\",\"\",入力欄!B42)","v":""},null,null,null,null,null,{"$f":"IF(入力欄!K42=\"\",\"\",入力欄!K42)","v":""},null,null,{"$f":"IF(入力欄!C42=\"\",\"\",入力欄!C42)","v":""},null,null,null,null,null,null,null,null,null,null,null,null,null,null,null,null,null,"③Ｂ 新聞社の写真に個人が特定されないようにする。"]
[6,null,{"$f":"IF(入力欄!B43=\"\",\"\",入力欄!B43)","v":""},null,null,null,null,null,{"$f":"IF(入力欄!K43=\"\",\"\",入力欄!K43)","v":""},null,null,{"$f":"IF(入力欄!C43=\"\",\"\",入力欄!C43)","v":""},null,null,null,null,null,null,null,null,null,null,null,null,null,null,null,null,null,"④ 協会ホームページに個人名を掲載しない。"]
[7,null,{"$f":"IF(入力欄!B44=\"\",\"\",入力欄!B44)","v":""},null,null,null,null,null,{"$f":"IF(入力欄!K44=\"\",\"\",入力欄!K44)","v":""},null,null,{"$f":"IF(入力欄!C44=\"\",\"\",入力欄!C44)","v":""},null,null,null,null,null,null,null,null,null,null,null,null,null,null,null,null,null,"⑤A 協会ホームページの写真に掲載されないようにする。"]
[8,null,{"$f":"IF(入力欄!B45=\"\",\"\",入力欄!B45)","v":""},null,null,null,null,null,{"$f":"IF(入力欄!K45=\"\",\"\",入力欄!K45)","v":""},null,null,{"$f":"IF(入力欄!C45=\"\",\"\",入力欄!C45)","v":""},null,null,null,null,null,null,null,null,null,null,null,null,null,null,null,null,null,"⑤B 協会ホームページの写真に個人が特定されないようにする。"]
[9,null,{"$f":"IF(入力欄!B46=\"\",\"\",入力欄!B46)","v":""},null,null,null,null,null,{"$f":"IF(入力欄!K46=\"\",\"\",入力欄!K46)","v":""},null,null,{"$f":"IF(入力欄!C46=\"\",\"\",入力欄!C46)","v":""},null,null,null,null,null,null,null,null,null,null,null,null,null,null,null,null,null,"⑥ 協会からの求めがあっても、推薦資料を提供しない。"]
[10,null,{"$f":"IF(入力欄!B47=\"\",\"\",入力欄!B47)","v":""},null,null,null,null,null,{"$f":"IF(入力欄!K47=\"\",\"\",入力欄!K47)","v":""},null,null,{"$f":"IF(入力欄!C47=\"\",\"\",入力欄!C47)","v":""},null,null,null,null,null,null,null,null,null,null,null,null,null,null,null,null,null,"◎ メンバー票に載せないことはできません。"]
[11,null,{"$f":"IF(入力欄!B48=\"\",\"\",入力欄!B48)","v":""},null,null,null,null,null,{"$f":"IF(入力欄!K48=\"\",\"\",入力欄!K48)","v":""},null,null,{"$f":"IF(入力欄!C48=\"\",\"\",入力欄!C48)","v":""}]
[12,null,{"$f":"IF(入力欄!B49=\"\",\"\",入力欄!B49)","v":""},null,null,null,null,null,{"$f":"IF(入力欄!K49=\"\",\"\",入力欄!K49)","v":""},null,null,{"$f":"IF(入力欄!C49=\"\",\"\",入力欄!C49)","v":""},null,null,null,null,null,null,null,null,null,null,null,null,null,null,null,null,null,null,null,"個人情報の取り扱いについて"]
[13,null,{"$f":"IF(入力欄!B50=\"\",\"\",入力欄!B50)","v":""},null,null,null,null,null,{"$f":"IF(入力欄!K50=\"\",\"\",入力欄!K50)","v":""},null,null,{"$f":"IF(入力欄!C50=\"\",\"\",入力欄!C50)","v":""}]
[14,null,{"$f":"IF(入力欄!B51=\"\",\"\",入力欄!B51)","v":""},null,null,null,null,null,{"$f":"IF(入力欄!K51=\"\",\"\",入力欄!K51)","v":""},null,null,{"$f":"IF(入力欄!C51=\"\",\"\",入力欄!C51)","v":""},null,null,null,null,null,null,null,null,null,null,null,null,null,null,null,null,null,null,"　参加申込によって得た個人情報は原則として、大会の運営に関することのみに利用します。"]
[15,null,{"$f":"IF(入力欄!B52=\"\",\"\",入力欄!B52)","v":""},null,null,null,null,null,{"$f":"IF(入力欄!K52=\"\",\"\",入力欄!K52)","v":""},null,null,{"$f":"IF(入力欄!C52=\"\",\"\",入力欄!C52)","v":""},null,null,null,null,null,null,null,null,null,null,null,null,null,null,null,null,null,null,"ただし、以下の場合に個人情報を公開および提供することがあります。"]
[16,null,{"$f":"IF(入力欄!B53=\"\",\"\",入力欄!B53)","v":""},null,null,null,null,null,{"$f":"IF(入力欄!K53=\"\",\"\",入力欄!K53)","v":""},null,null,{"$f":"IF(入力欄!C53=\"\",\"\",入力欄!C53)","v":""},null,null,null,null,null,null,null,null,null,null,null,null,null,null,null,null,null,null,"① 大会プログラムを作成し、チームの集合写真・選手氏名・学年・身長等が掲載されることがあります。"]
[17,null,{"$f":"IF(入力欄!B54=\"\",\"\",入力欄!B54)","v":""},null,null,null,null,null,{"$f":"IF(入力欄!K54=\"\",\"\",入力欄!K54)","v":""},null,null,{"$f":"IF(入力欄!C54=\"\",\"\",入力欄!C54)","v":""},null,null,null,null,null,null,null,null,null,null,null,null,null,null,null,null,null,null,"② 新聞社に試合結果を提供します。その際に優秀選手等の個人名が提供されることがあります。"]
[18,null,{"$f":"IF(入力欄!B55=\"\",\"\",入力欄!B55)","v":""},null,null,null,null,null,{"$f":"IF(入力欄!K55=\"\",\"\",入力欄!K55)","v":""},null,null,{"$f":"IF(入力欄!C55=\"\",\"\",入力欄!C55)","v":""},null,null,null,null,null,null,null,null,null,null,null,null,null,null,null,null,null,null,"③ 新聞社が試合風景の写真を撮影し、掲載することがあります。"]
[19,null,{"$f":"IF(入力欄!B56=\"\",\"\",入力欄!B56)","v":""},null,null,null,null,null,{"$f":"IF(入力欄!K56=\"\",\"\",入力欄!K56)","v":""},null,null,{"$f":"IF(入力欄!C56=\"\",\"\",入力欄!C56)","v":""},null,null,null,null,null,null,null,null,null,null,null,null,null,null,null,null,null,null,"④ 協会ホームページに試合結果を掲載します。その際に優秀選手等の個人名が掲載されることがあります。"]
[20,null,{"$f":"IF(入力欄!B57=\"\",\"\",入力欄!B57)","v":""},null,null,null,null,null,{"$f":"IF(入力欄!K57=\"\",\"\",入力欄!K57)","v":""},null,null,{"$f":"IF(入力欄!C57=\"\",\"\",入力欄!C57)","v":""},null,null,null,null,null,null,null,null,null,null,null,null,null,null,null,null,null,null,"⑤ 協会ホームページに試合風景の写真を掲載することがあります。"]
[21,null,{"$f":"IF(入力欄!B58=\"\",\"\",入力欄!B58)","v":""},null,null,null,null,null,{"$f":"IF(入力欄!K58=\"\",\"\",入力欄!K58)","v":""},null,null,{"$f":"IF(入力欄!C58=\"\",\"\",入力欄!C58)","v":""},null,null,null,null,null,null,null,null,null,null,null,null,null,null,null,null,null,null,"⑥ 県協会、日本協会の求めに応じて、優秀選手の推薦等の資料として個人名・身長等を提供することがあります。"]
[22,null,{"$f":"IF(入力欄!B59=\"\",\"\",入力欄!B59)","v":""},null,null,null,null,null,{"$f":"IF(入力欄!K59=\"\",\"\",入力欄!K59)","v":""},null,null,{"$f":"IF(入力欄!C59=\"\",\"\",入力欄!C59)","v":""},null,null,null,null,null,null,null,null,null,null,null,null,null,null,null,null,null,null,"香川県ジュニアバスケットボール大会はオンラインプログラムを配布します。"]
[23,null,{"$f":"IF(入力欄!B60=\"\",\"\",入力欄!B60)","v":""},null,null,null,null,null,{"$f":"IF(入力欄!K60=\"\",\"\",入力欄!K60)","v":""},null,null,{"$f":"IF(入力欄!C60=\"\",\"\",入力欄!C60)","v":""}]
[24,null,{"$f":"IF(入力欄!B61=\"\",\"\",入力欄!B61)","v":""},null,null,null,null,null,{"$f":"IF(入力欄!K61=\"\",\"\",入力欄!K61)","v":""},null,null,{"$f":"IF(入力欄!C61=\"\",\"\",入力欄!C61)","v":""}]
[25,null,{"$f":"IF(入力欄!B62=\"\",\"\",入力欄!B62)","v":""},null,null,null,null,null,{"$f":"IF(入力欄!K62=\"\",\"\",入力欄!K62)","v":""},null,null,{"$f":"IF(入力欄!C62=\"\",\"\",入力欄!C62)","v":""}]
[]
["No.",null,"氏　　名",null,null,null,null,null,null,null,null,"役職",null,null,"配慮が必要",null,null,null,"配慮する内容"]
[1,null,null,null,null,null,null,null,null,null,null,null,null,null,null,null,null,null,null,null,null,null,null,null,null,null,null,null,null,null,null,null,null,null,null,null,null,null,null,null,null,null,null,null,null,null,null,null,null,null,null,null,null,null,null,null,null,null,null,null,"責任者","引率者","連絡責任者","コーチ","Ａコーチ","マネージャー"]
[2]
[3]
[4]
[5]
[]
["　標記大会において、上記の者の個人情報について配慮していただくことを申請いたします。"]
[{"$f":"入力欄!C1&\"長 殿\"","v":"高松市バスケットボール協会長 殿"},null,null,null,null,null,null,null,null,null,null,null,null,null,null,null,null,{"$f":"入力欄!B3","v":2025},null,null,"年",{"$f":"入力欄!B4","v":4},"月",{"$f":"入力欄!B5","v":2},"日"]
[]
[null,null,null,null,null,{"$f":"IF(入力欄!$E$7=\"\",\"\",入力欄!E7)","v":""},null,null,null,null,null,null,null,null,null,null,{"$f":"入力欄!B7","v":0}]
[null,null,null,null,null,null,{"$f":"IF(入力欄!E12=\"\",\"\",入力欄!E12)","v":""},null,null,null,null,null,null,null,null,{"$f":"IF(入力欄!E6=\"\",\"\",\"印\")","v":""},null,{"$f":"入力欄!B12","v":0},null,null,null,null,null,null,null,null,"印"]

{"sheet":"個人情報確認","index":3,"n_rows":56,"n_cols":12,"rows_kept":56,"cut":false,"hidden":false,"merged":[[38,5,39,5],[42,0,42,10],[45,2,45,9],[0,8,0,9],[1,1,1,3],[5,8,5,9],[6,8,6,9],[8,1,8,9],[10,1,17,9]]}
[null,null,null,null,null,null,null,null,"2022-04-01",null,null,"←日付は変更して使用してください。"]
[null,"○○立○○中学校",null,null,null,null,null,null,null,null,null,"←学校名は入力して使用してください。"]
[null,"バスケットボール部保護者　各位"]
[null,null,null,null,null,null,null,null,null,{"$f":"B2","v":"○○立○○中学校"},null,"←こちらは上の学校名に連動しています。"]
[null,null,null,null,null,null,null,null,null,"バスケットボール部顧問"]
[null,null,null,null,null,null,null,null,"男子　　○○　○○",null,null,"←顧問名は入力して使用してください。"]
[null,null,null,null,null,null,null,null,"女子　　○○　○○"]
[]
[null,"バスケットボール大会参加時の個人情報の取扱について"]
[]
[null,"　日頃より、本校バスケットボール部の活動にご理解、ご協力いただきありがとうございます。\n　さて、香川県・地区バスケットボール協会、香川県・地区中学校体育連盟が主催するバスケットボール大会に出場する際、個人情報の取扱について大会申込時に確認が求められます。そこで部員全員に個人情報の取扱について確認をしたいと思います。この調査は来年度の県総体までの期間有効とします。途中で変更になる場合は生徒を通じて申し出るようお願いします。\n　各大会主催者から出されている下記の個人情報の取扱について確認していただき、『個人情報の配慮事項』に必要事項を記入して○月○日までに各顧問へ提出してください。"]
[]
[]
[]
[]
[]
[null,null,null,null,null,null,null,null,null,null,null,"←〆切日は入力して使用してください。"]
[]
[]
[null,null,null,null,null,"記"]
[]
[null,"※個人情報の取扱について"]
[null,"　参加申込によって得た個人情報は原則として、大会の運営に関することのみに利用します。"]
[null,"ただし、以下の場合に個人情報を公開および提供することがあります。"]
[]
[null,"① 大会プログラムを作成し、チームの集合写真・選手氏名・学年・身長等が掲載されることがあります"]
[null,"　（大会プログラムは県総体のみ作成、今年度は集合写真の掲載はなし）。"]
[null,"② 新聞社に試合結果を提供します。その際に優秀選手等の個人名が提供されることがあります(優秀"]
[null,"　選手は県ジュニア大会のみ設定があり）。"]
[null,"③ 新聞社が試合風景の写真を撮影し、掲載することがあります(県大会のベスト4の試合を四国新聞"]
[null,"　社が撮影し、新聞に掲載される可能性あり)。"]
[null,"④ 協会ホームページに試合結果を掲載します。その際に優秀選手等の個人名が掲載されることが"]
[null,"　あります(優秀選手は県ジュニア大会のみ設定あり）。"]
[null,"⑤ 協会ホームページに試合風景の写真を掲載することがあります(県大会のベスト4の試合を協会"]
[null,"　役員が撮影し、ホームページに掲載される可能性あり)。"]
[null,"⑥ 県協会、日本協会の求めに応じて、優秀選手の推薦等の資料として個人名・身長等を提供する"]
[null,"　ことがあります。"]
[]
[null,null,null,null,null,"切り取り"]
[]
[null,"バスケットボール部の大会参加時に関わる個人情報の取扱確認"]
[]
["(　　)年(　　)組　氏名(　　　　　　　　　　　　)　　保護者氏名(　　　　　　　　　　 印　)"]
[]
[null,"該当する項目の左の欄に○を記入する。",null,null,null,null,"記入日",{"$f":"入力欄!B3&\"年\"","v":"2025年"},"月","日"]
[null,"該当","項目"]
[null,null,"　配慮事項は特にない"]
[null,null,"①Ａ","プログラムに個人名・学年・身長を掲載しない。"]
[null,null,"①Ｂ","集合写真には入らない。"]
[null,null,"②","新聞社に個人名を提供しない。"]
[null,null,"③A","新聞社の写真に掲載されないようにする。"]
[null,null,"③Ｂ","新聞社の写真に個人が特定されないようにする。"]
[null,null,"④","協会ホームページに個人名を掲載しない。"]
[null,null,"⑤A","協会ホームページの写真に掲載されないようにする。"]
[null,null,"⑤B","協会ホームページの写真に個人が特定されないようにする。"]
[null,null,"⑥","協会からの求めがあっても、推薦資料を提供しない。"]